[Event "*** Titled Tuesday Blitz"]
[Site "Chess.com"]
[Date "2020.04.28"]
[Round "6"]
[White "fridaywins"]
[Black "BasilSmash"]
[Result "0-1"]
[WhiteElo "2248"]
[BlackElo "2436"]
[TimeControl "180+1"]
[EndTime "11:06:26 PDT"]
[Termination "BasilSmash won by resignation"]

1. e4 {[%clk 0:03:00.9]} 1... c6 {[%clk 0:02:56.1]} 2. Nc3 {[%clk 0:03:00.3]}
2... d5 {[%clk 0:02:57]} 3. Nf3 {[%clk 0:03:00.8]} 3... Bg4 {[%clk 0:02:56.4]}
4. h3 {[%clk 0:03:00.9]} 4... Bxf3 {[%clk 0:02:56.5]} 5. Qxf3 {[%clk 0:03:01.8]}
5... Nf6 {[%clk 0:02:57.3]} 6. g3 {[%clk 0:03:02.1]} 6... e6 {[%clk 0:02:56.4]}
7. Bg2 {[%clk 0:03:02.1]} 7... Bc5 {[%clk 0:02:56]} 8. O-O {[%clk 0:03:00]} 8...
O-O {[%clk 0:02:55.6]} 9. Qe2 {[%clk 0:02:59.7]} 9... Bb4 {[%clk 0:02:32.7]} 10.
e5 {[%clk 0:02:55.6]} 10... Nfd7 {[%clk 0:02:31.1]} 11. f4 {[%clk 0:02:54]}
11... c5 {[%clk 0:02:25.8]} 12. Kh2 {[%clk 0:02:53.6]} 12... Nc6 {[%clk
0:02:22.3]} 13. a3 {[%clk 0:02:28.8]} 13... Ba5 {[%clk 0:02:16.1]} 14. Qd1
{[%clk 0:02:28.9]} 14... c4 {[%clk 0:02:11.7]} 15. d4 {[%clk 0:02:26.2]} 15...
cxd3 {[%clk 0:02:06.1]} 16. cxd3 {[%clk 0:02:25.3]} 16... Rc8 {[%clk 0:02:04.1]}
17. d4 {[%clk 0:02:21.4]} 17... Bb6 {[%clk 0:01:49.4]} 18. Be3 {[%clk
0:02:17.6]} 18... Na5 {[%clk 0:01:47.5]} 19. f5 {[%clk 0:02:03.3]} 19... Nxe5
{[%clk 0:01:45.3]} 20. dxe5 {[%clk 0:01:56.9]} 20... Bxe3 {[%clk 0:01:43.6]} 21.
f6 {[%clk 0:01:57.1]} 21... g6 {[%clk 0:01:30.8]} 22. Rf4 {[%clk 0:01:57.1]}
22... Qc7 {[%clk 0:01:20.5]} 23. Qf3 {[%clk 0:01:35.2]} 23... Qxe5 {[%clk
0:01:08]} 24. Re1 {[%clk 0:01:33.7]} 24... d4 {[%clk 0:01:07.8]} 25. Nd1 {[%clk
0:01:07]} 25... Nc4 {[%clk 0:00:55.7]} 26. b3 {[%clk 0:01:00.8]} 26... Nd2
{[%clk 0:00:54.8]} 27. Qg4 {[%clk 0:01:00.9]} 27... Rc2 {[%clk 0:00:48.8]} 28.
Nxe3 {[%clk 0:00:58.1]} 28... dxe3 {[%clk 0:00:46.7]} 29. Re4 {[%clk 0:00:58.2]}
29... Nxe4 {[%clk 0:00:45]} 30. Rxe3 {[%clk 0:00:54.6]} 30... Nxf6 {[%clk
0:00:40.2]} 31. Rxe5 {[%clk 0:00:47.4]} 31... Nxg4+ {[%clk 0:00:39.4]} 32. hxg4
{[%clk 0:00:48.3]} 32... Rd8 {[%clk 0:00:39.7]} 33. Kh3 {[%clk 0:00:49.2]} 33...
b6 {[%clk 0:00:38.3]} 34. g5 {[%clk 0:00:49.4]} 34... Rc3 {[%clk 0:00:38.3]} 35.
Rb5 {[%clk 0:00:47.8]} 35... Rdd3 {[%clk 0:00:37.6]} 36. Bb7 {[%clk 0:00:46.5]}
36... Rxb3 {[%clk 0:00:35.6]} 37. Kh2 {[%clk 0:00:47.4]} 37... Rxb5 {[%clk
0:00:35]} 38. Be4 {[%clk 0:00:48.3]} 38... Re3 {[%clk 0:00:33.4]} 0-1

[Event "*** Titled Tuesday Blitz"]
[Site "Chess.com"]
[Date "2020.04.28"]
[Round "6"]
[White "murtas73"]
[Black "adriangschnitzer"]
[Result "1-0"]
[WhiteElo "2597"]
[BlackElo "2405"]
[TimeControl "180+1"]
[EndTime "11:06:28 PDT"]
[Termination "murtas73 won on time"]

1. d4 {[%clk 0:03:00.9]} 1... Nf6 {[%clk 0:02:59.2]} 2. c4 {[%clk 0:03:00.5]}
2... c5 {[%clk 0:02:59.5]} 3. Nc3 {[%clk 0:03:00.4]} 3... cxd4 {[%clk
0:02:58.6]} 4. Qxd4 {[%clk 0:03:00.8]} 4... Nc6 {[%clk 0:02:58.8]} 5. Qd1 {[%clk
0:03:00.5]} 5... g6 {[%clk 0:02:59.2]} 6. Nf3 {[%clk 0:02:58]} 6... Bg7 {[%clk
0:02:59.6]} 7. e4 {[%clk 0:02:58.4]} 7... O-O {[%clk 0:02:58.3]} 8. Be2 {[%clk
0:02:58.3]} 8... d6 {[%clk 0:02:55.8]} 9. O-O {[%clk 0:02:58]} 9... Bd7 {[%clk
0:02:53]} 10. h3 {[%clk 0:02:52.7]} 10... Rc8 {[%clk 0:02:49.5]} 11. Be3 {[%clk
0:02:52.2]} 11... Na5 {[%clk 0:02:22.6]} 12. Nd2 {[%clk 0:02:51.1]} 12... Be6
{[%clk 0:02:15.2]} 13. b3 {[%clk 0:02:21.7]} 13... Ng4 {[%clk 0:02:06]} 14. hxg4
{[%clk 0:02:19.7]} 14... Bxc3 {[%clk 0:02:04.7]} 15. Rc1 {[%clk 0:02:20.4]}
15... Bg7 {[%clk 0:02:03.1]} 16. f4 {[%clk 0:02:19.3]} 16... Nc6 {[%clk
0:01:40.3]} 17. f5 {[%clk 0:02:06.6]} 17... Bd7 {[%clk 0:01:39.3]} 18. Nf3
{[%clk 0:02:07.2]} 18... Qa5 {[%clk 0:01:31.3]} 19. Qd2 {[%clk 0:02:05.5]} 19...
Qxd2 {[%clk 0:01:24.9]} 20. Bxd2 {[%clk 0:01:50.3]} 20... Nd4 {[%clk 0:01:19.4]}
21. Kf2 {[%clk 0:01:47.7]} 21... Bc6 {[%clk 0:01:13.8]} 22. Nxd4 {[%clk
0:01:43.5]} 22... Bxd4+ {[%clk 0:01:14.7]} 23. Be3 {[%clk 0:01:43.5]} 23... Be5
{[%clk 0:00:56.1]} 24. Bd3 {[%clk 0:01:40.6]} 24... b6 {[%clk 0:00:51.6]} 25.
Rh1 {[%clk 0:01:39.5]} 25... e6 {[%clk 0:00:42.9]} 26. Rh3 {[%clk 0:01:39]}
26... exf5 {[%clk 0:00:39.4]} 27. exf5 {[%clk 0:01:37]} 27... Rc7 {[%clk
0:00:24.7]} 28. Rch1 {[%clk 0:01:34.3]} 28... gxf5 {[%clk 0:00:07.5]} 29. Bxf5
{[%clk 0:01:29.1]} 29... Re8 {[%clk 0:00:05.1]} 30. Bxh7+ {[%clk 0:01:22.9]}
30... Kf8 {[%clk 0:00:04.4]} 31. Bf5 {[%clk 0:01:22.1]} 31... Ke7 {[%clk
0:00:03.7]} 32. Bg5+ {[%clk 0:01:20.1]} 32... Kf8 {[%clk 0:00:03.5]} 33. Rh8+
{[%clk 0:01:17.8]} 33... Bxh8 {[%clk 0:00:03.1]} 34. Rxh8+ {[%clk 0:01:16.9]}
34... Kg7 {[%clk 0:00:04]} 35. Rh7+ {[%clk 0:01:15.7]} 35... Kf8 {[%clk
0:00:01.7]} 36. Bf6 {[%clk 0:01:15.4]} 1-0

[Event "*** Titled Tuesday Blitz"]
[Site "Chess.com"]
[Date "2020.04.28"]
[Round "6"]
[White "LiemLe"]
[Black "IMTominho"]
[Result "1/2-1/2"]
[WhiteElo "3002"]
[BlackElo "2823"]
[TimeControl "180+1"]
[EndTime "11:06:29 PDT"]
[Termination "Game drawn by agreement"]

1. d4 {[%clk 0:03:00.9]} 1... d5 {[%clk 0:02:59.1]} 2. c4 {[%clk 0:03:00.8]}
2... c6 {[%clk 0:02:57.4]} 3. Nf3 {[%clk 0:03:00.7]} 3... Nf6 {[%clk 0:02:55.9]}
4. g3 {[%clk 0:03:01.3]} 4... Bf5 {[%clk 0:02:48.7]} 5. Nc3 {[%clk 0:02:59.1]}
5... h6 {[%clk 0:02:40.6]} 6. cxd5 {[%clk 0:02:45.1]} 6... cxd5 {[%clk 0:02:39]}
7. Qb3 {[%clk 0:02:45.3]} 7... Qb6 {[%clk 0:02:37.8]} 8. Nxd5 {[%clk 0:02:21.6]}
8... Nxd5 {[%clk 0:02:36.7]} 9. Qxd5 {[%clk 0:02:22.5]} 9... e6 {[%clk
0:02:37.2]} 10. Qb3 {[%clk 0:02:15.8]} 10... Nc6 {[%clk 0:02:37.3]} 11. Bg2
{[%clk 0:01:42.4]} 11... Bb4+ {[%clk 0:02:31.3]} 12. Bd2 {[%clk 0:01:38.4]}
12... Nxd4 {[%clk 0:02:21.4]} 13. Qa4+ {[%clk 0:01:30.7]} 13... Nc6 {[%clk
0:02:02.5]} 14. O-O {[%clk 0:01:30.1]} 14... O-O {[%clk 0:01:57.7]} 15. Be3
{[%clk 0:01:28.3]} 15... Bc5 {[%clk 0:01:55]} 16. Bxc5 {[%clk 0:01:28]} 16...
Qxc5 {[%clk 0:01:55.9]} 17. Rac1 {[%clk 0:01:24.6]} 17... Qb6 {[%clk 0:01:53.7]}
18. Qa3 {[%clk 0:00:53.7]} 18... Rac8 {[%clk 0:01:45]} 19. e3 {[%clk 0:00:43.6]}
19... Be4 {[%clk 0:01:37.7]} 20. Rc3 {[%clk 0:00:39.7]} 20... Rfd8 {[%clk
0:01:27.7]} 21. Rfc1 {[%clk 0:00:39]} 21... Rd5 {[%clk 0:01:20.1]} 22. Nd4
{[%clk 0:00:36.6]} 22... Bxg2 {[%clk 0:01:18]} 23. Kxg2 {[%clk 0:00:37.5]} 23...
Ra5 {[%clk 0:01:06]} 24. Qb3 {[%clk 0:00:36.4]} 24... Qxb3 {[%clk 0:01:02]} 25.
Rxb3 {[%clk 0:00:37.3]} 25... Rc7 {[%clk 0:00:55]} 26. Nxc6 {[%clk 0:00:32.7]}
26... Rxc6 {[%clk 0:00:49.4]} 27. Rxc6 {[%clk 0:00:30.8]} 27... bxc6 {[%clk
0:00:50.3]} 28. a3 {[%clk 0:00:31.2]} 28... Rb5 {[%clk 0:00:45.9]} 29. Rxb5
{[%clk 0:00:30.9]} 29... cxb5 {[%clk 0:00:46.8]} 30. Kf3 {[%clk 0:00:31.1]}
30... Kf8 {[%clk 0:00:43.2]} 31. Ke4 {[%clk 0:00:23.7]} 31... Ke7 {[%clk
0:00:40.7]} 32. Kd4 {[%clk 0:00:22.3]} 32... Kd6 {[%clk 0:00:38.6]} 33. f4
{[%clk 0:00:22.4]} 33... f6 {[%clk 0:00:32.9]} 34. e4 {[%clk 0:00:20]} 34... e5+
{[%clk 0:00:32.5]} 35. fxe5+ {[%clk 0:00:20.9]} 35... fxe5+ {[%clk 0:00:33.4]}
36. Kc3 {[%clk 0:00:21.2]} 36... Kc5 {[%clk 0:00:30.5]} 37. b4+ {[%clk
0:00:20.6]} 1/2-1/2

[Event "*** Titled Tuesday Blitz"]
[Site "Chess.com"]
[Date "2020.04.28"]
[Round "6"]
[White "BvsN"]
[Black "wild_cat99"]
[Result "0-1"]
[WhiteElo "2379"]
[BlackElo "2562"]
[TimeControl "180+1"]
[EndTime "11:06:29 PDT"]
[Termination "wild_cat99 won by resignation"]

1. d4 {[%clk 0:03:00.9]} 1... Nf6 {[%clk 0:03:00.2]} 2. c4 {[%clk 0:03:00.7]}
2... g6 {[%clk 0:03:00.5]} 3. Nc3 {[%clk 0:03:00.9]} 3... d5 {[%clk 0:03:01.1]}
4. Bg5 {[%clk 0:02:59.1]} 4... Ne4 {[%clk 0:03:00.5]} 5. Bh4 {[%clk 0:02:58.2]}
5... Nxc3 {[%clk 0:03:00.8]} 6. bxc3 {[%clk 0:02:59.1]} 6... Bg7 {[%clk
0:03:00.1]} 7. cxd5 {[%clk 0:02:57.7]} 7... Qxd5 {[%clk 0:03:01]} 8. e3 {[%clk
0:02:57.6]} 8... c5 {[%clk 0:03:01.6]} 9. Qf3 {[%clk 0:02:44.1]} 9... Qxf3
{[%clk 0:02:57.2]} 10. Nxf3 {[%clk 0:02:43.9]} 10... Nc6 {[%clk 0:02:58]} 11.
Bb5 {[%clk 0:02:42.1]} 11... Bd7 {[%clk 0:02:53.6]} 12. O-O {[%clk 0:02:39.7]}
12... a6 {[%clk 0:02:42.9]} 13. Be2 {[%clk 0:02:39.3]} 13... b5 {[%clk
0:02:37.5]} 14. a4 {[%clk 0:02:32.8]} 14... b4 {[%clk 0:02:33.2]} 15. cxb4
{[%clk 0:02:29.7]} 15... Nxb4 {[%clk 0:02:34]} 16. Rfc1 {[%clk 0:02:22.1]} 16...
cxd4 {[%clk 0:02:31.5]} 17. Nxd4 {[%clk 0:02:10.4]} 17... e5 {[%clk 0:02:31.2]}
18. Nb3 {[%clk 0:02:04.5]} 18... e4 {[%clk 0:02:30.4]} 19. Rab1 {[%clk
0:01:35.5]} 19... Nd3 {[%clk 0:02:30.2]} 20. Rd1 {[%clk 0:01:22.2]} 20... Bxa4
{[%clk 0:02:25.4]} 21. Bxd3 {[%clk 0:01:20.6]} 21... exd3 {[%clk 0:02:26.3]} 22.
Rxd3 {[%clk 0:01:20.7]} 22... Rb8 {[%clk 0:02:22.9]} 23. Nd2 {[%clk 0:01:02.8]}
23... Rxb1+ {[%clk 0:02:23.8]} 24. Nxb1 {[%clk 0:01:02.8]} 24... O-O {[%clk
0:02:22.3]} 25. Rd8 {[%clk 0:00:41.1]} 25... a5 {[%clk 0:02:14.5]} 26. Na3
{[%clk 0:00:28.7]} 26... Bb3 {[%clk 0:02:02.5]} 27. Kf1 {[%clk 0:00:26.6]} 27...
a4 {[%clk 0:01:59.4]} 28. Ke2 {[%clk 0:00:22.8]} 28... Bb2 {[%clk 0:01:59.5]}
29. Nb5 {[%clk 0:00:17.1]} 29... a3 {[%clk 0:01:59.4]} 30. Nxa3 {[%clk
0:00:09.4]} 30... Bxa3 {[%clk 0:02:00.3]} 31. Rxf8+ {[%clk 0:00:09]} 31... Kxf8
{[%clk 0:02:00.3]} 32. Bf6 {[%clk 0:00:08.1]} 32... Bc4+ {[%clk 0:01:59.9]} 33.
Ke1 {[%clk 0:00:07.6]} 33... Bb4+ {[%clk 0:01:57]} 34. Kd1 {[%clk 0:00:07.7]}
34... h5 {[%clk 0:01:55.4]} 35. f3 {[%clk 0:00:07.9]} 35... Ke8 {[%clk
0:01:52.6]} 36. e4 {[%clk 0:00:08.3]} 36... Kd7 {[%clk 0:01:52.7]} 37. Bd4
{[%clk 0:00:07.7]} 37... Ke6 {[%clk 0:01:52.2]} 38. Be3 {[%clk 0:00:07.8]} 38...
Ke5 {[%clk 0:01:50.1]} 39. Bf2 {[%clk 0:00:08]} 39... Bc3 {[%clk 0:01:44.4]} 40.
Bg3+ {[%clk 0:00:07.7]} 40... Kd4 {[%clk 0:01:43.1]} 41. Bf2+ {[%clk 0:00:04.8]}
41... Kd3 {[%clk 0:01:43.5]} 42. Bg1 {[%clk 0:00:03.2]} 42... Bd4 {[%clk
0:01:40.3]} 43. Bxd4 {[%clk 0:00:02.8]} 43... Kxd4 {[%clk 0:01:41.2]} 44. Kd2
{[%clk 0:00:03.2]} 44... Bf1 {[%clk 0:01:40.2]} 45. g3 {[%clk 0:00:03.6]} 45...
Bh3 {[%clk 0:01:34.4]} 46. Ke2 {[%clk 0:00:03.4]} 46... f6 {[%clk 0:01:32.9]}
47. Kf2 {[%clk 0:00:03.8]} 47... Kd3 {[%clk 0:01:32.7]} 48. g4 {[%clk
0:00:04.2]} 48... hxg4 {[%clk 0:01:29.8]} 49. fxg4 {[%clk 0:00:03.5]} 49... Bxg4
{[%clk 0:01:29.7]} 50. Kg3 {[%clk 0:00:03.8]} 50... Be6 {[%clk 0:01:28.2]} 51.
Kf4 {[%clk 0:00:04.6]} 51... g5+ {[%clk 0:01:26.2]} 52. Kf3 {[%clk 0:00:04.8]}
52... Bd7 {[%clk 0:01:26.2]} 53. e5 {[%clk 0:00:03.5]} 53... fxe5 {[%clk
0:01:25.8]} 54. h4 {[%clk 0:00:04.4]} 54... e4+ {[%clk 0:01:26]} 55. Kg3 {[%clk
0:00:03.5]} 55... gxh4+ {[%clk 0:01:25.6]} 56. Kf2 {[%clk 0:00:03.5]} 56... e3+
{[%clk 0:01:26.5]} 57. Ke1 {[%clk 0:00:03.8]} 57... e2 {[%clk 0:01:26.2]} 58.
Kf2 {[%clk 0:00:04.1]} 58... Kd2 {[%clk 0:01:26.2]} 0-1

[Event "*** Titled Tuesday Blitz"]
[Site "Chess.com"]
[Date "2020.04.28"]
[Round "6"]
[White "DanielRensch"]
[Black "Vincent_Vega95"]
[Result "0-1"]
[WhiteElo "2491"]
[BlackElo "2688"]
[TimeControl "180+1"]
[EndTime "11:06:30 PDT"]
[Termination "Vincent_Vega95 won by resignation"]

1. e4 {[%clk 0:02:25.6]} 1... g6 {[%clk 0:03:00.9]} 2. d4 {[%clk 0:02:10.1]}
2... Bg7 {[%clk 0:02:59.6]} 3. Nc3 {[%clk 0:02:09.6]} 3... d6 {[%clk 0:02:58.7]}
4. Bg5 {[%clk 0:02:08.9]} 4... a6 {[%clk 0:02:58]} 5. f4 {[%clk 0:02:07.7]} 5...
b5 {[%clk 0:02:57.9]} 6. Nf3 {[%clk 0:02:07.3]} 6... Bb7 {[%clk 0:02:57.6]} 7.
Bd3 {[%clk 0:02:06.7]} 7... f6 {[%clk 0:02:52.8]} 8. Bh4 {[%clk 0:02:05.7]} 8...
Nh6 {[%clk 0:02:53]} 9. O-O {[%clk 0:02:04.4]} 9... O-O {[%clk 0:02:52]} 10. d5
{[%clk 0:01:56.7]} 10... Nf7 {[%clk 0:02:44.4]} 11. Nd4 {[%clk 0:01:56.1]} 11...
Bc8 {[%clk 0:02:40.9]} 12. a3 {[%clk 0:01:36.4]} 12... c5 {[%clk 0:02:40.5]} 13.
dxc6 {[%clk 0:01:36]} 13... Qb6 {[%clk 0:02:38.4]} 14. Bf2 {[%clk 0:01:35.8]}
14... Qd8 {[%clk 0:02:07.4]} 15. Nd5 {[%clk 0:01:35.4]} 15... Ra7 {[%clk
0:02:07.1]} 16. Nxb5 {[%clk 0:01:32.1]} 16... axb5 {[%clk 0:02:06.4]} 17. Bxa7
{[%clk 0:01:32.7]} 17... Nxc6 {[%clk 0:02:07.2]} 18. Be3 {[%clk 0:01:32.9]}
18... Bd7 {[%clk 0:01:55]} 19. Bxb5 {[%clk 0:01:32]} 19... e6 {[%clk 0:01:54.8]}
20. Nc3 {[%clk 0:01:29.8]} 20... Qc7 {[%clk 0:01:53.6]} 21. Qe2 {[%clk
0:01:27.4]} 21... Rb8 {[%clk 0:01:53.1]} 22. Rfd1 {[%clk 0:01:26.7]} 22... f5
{[%clk 0:01:53.2]} 23. exf5 {[%clk 0:01:25.5]} 23... gxf5 {[%clk 0:01:53]} 24.
a4 {[%clk 0:01:25.2]} 24... Nb4 {[%clk 0:01:43.6]} 25. Kh1 {[%clk 0:01:22]}
25... Bc6 {[%clk 0:01:22.5]} 26. Qc4 {[%clk 0:01:17.3]} 26... Rxb5 {[%clk
0:01:17.5]} 27. Qxe6 {[%clk 0:01:14]} 27... Rb8 {[%clk 0:01:09.7]} 28. Bd4
{[%clk 0:01:07.9]} 28... Bxd4 {[%clk 0:01:03.8]} 29. Rxd4 {[%clk 0:01:07.5]}
29... Nxc2 {[%clk 0:01:04.1]} 30. Rd3 {[%clk 0:01:07.7]} 30... Nxa1 {[%clk
0:00:53.8]} 31. Rg3+ {[%clk 0:00:59]} 31... Kf8 {[%clk 0:00:53.8]} 32. Qf6
{[%clk 0:00:59.6]} 32... Be4 {[%clk 0:00:41.6]} 33. Rg7 {[%clk 0:00:40.6]} 33...
Rxb2 {[%clk 0:00:38.4]} 34. h3 {[%clk 0:00:38.9]} 34... Rxg2 {[%clk 0:00:36.8]}
35. Rxg2 {[%clk 0:00:34.6]} 35... Bxg2+ {[%clk 0:00:36.3]} 36. Kxg2 {[%clk
0:00:35.5]} 36... Nb3 {[%clk 0:00:36.5]} 37. Nd5 {[%clk 0:00:18.4]} 37... Qc2+
{[%clk 0:00:34.9]} 38. Kg3 {[%clk 0:00:17.6]} 38... Qd3+ {[%clk 0:00:34.6]} 39.
Kh4 {[%clk 0:00:17.7]} 39... Qxd5 {[%clk 0:00:34.5]} 0-1

[Event "*** Titled Tuesday Blitz"]
[Site "Chess.com"]
[Date "2020.04.28"]
[Round "6"]
[White "Ekka83"]
[Black "Gennady_Kozlov"]
[Result "1-0"]
[WhiteElo "2399"]
[BlackElo "2557"]
[TimeControl "180+1"]
[EndTime "11:06:30 PDT"]
[Termination "Ekka83 won by resignation"]

1. e4 {[%clk 0:03:00.1]} 1... e6 {[%clk 0:02:56.1]} 2. d4 {[%clk 0:02:59.4]}
2... d5 {[%clk 0:02:55.5]} 3. e5 {[%clk 0:02:59.5]} 3... c5 {[%clk 0:02:55.1]}
4. c3 {[%clk 0:02:59.6]} 4... Nc6 {[%clk 0:02:55.7]} 5. Nf3 {[%clk 0:02:59.5]}
5... Bd7 {[%clk 0:02:56.4]} 6. Be2 {[%clk 0:02:59.5]} 6... f6 {[%clk 0:02:54.6]}
7. exf6 {[%clk 0:02:42.7]} 7... gxf6 {[%clk 0:02:48.2]} 8. O-O {[%clk
0:02:32.2]} 8... Qc7 {[%clk 0:02:41.6]} 9. dxc5 {[%clk 0:02:26.6]} 9... Bxc5
{[%clk 0:02:40]} 10. Nd4 {[%clk 0:02:26.7]} 10... O-O-O {[%clk 0:02:26.8]} 11.
Nb5 {[%clk 0:02:21.2]} 11... Qb8 {[%clk 0:02:23.4]} 12. b4 {[%clk 0:02:20]}
12... Bb6 {[%clk 0:02:22.2]} 13. a4 {[%clk 0:02:15.8]} 13... Nge7 {[%clk
0:02:21.6]} 14. a5 {[%clk 0:02:09]} 14... Bc7 {[%clk 0:02:21.7]} 15. g3 {[%clk
0:02:04.5]} 15... Rhg8 {[%clk 0:02:14.6]} 16. Nxc7 {[%clk 0:01:59.5]} 16... Qxc7
{[%clk 0:02:12.8]} 17. b5 {[%clk 0:01:57.8]} 17... Ne5 {[%clk 0:02:07.9]} 18. b6
{[%clk 0:01:51.6]} 18... Qb8 {[%clk 0:01:53.9]} 19. bxa7 {[%clk 0:01:49.1]}
19... Qxa7 {[%clk 0:01:53]} 20. Be3 {[%clk 0:01:49.6]} 20... Qb8 {[%clk
0:01:46.4]} 21. a6 {[%clk 0:01:49.5]} 21... Bc6 {[%clk 0:01:45.6]} 22. a7 {[%clk
0:01:37.8]} 22... Qa8 {[%clk 0:01:45.2]} 23. Bb6 {[%clk 0:01:36.4]} 23... Rd7
{[%clk 0:01:43.1]} 24. Na3 {[%clk 0:01:32.6]} 24... Nf5 {[%clk 0:01:40.8]} 25.
Nb5 {[%clk 0:01:27.6]} 25... Nf3+ {[%clk 0:01:28.7]} 26. Bxf3 {[%clk 0:01:18.5]}
26... Bxb5 {[%clk 0:01:27.9]} 27. Re1 {[%clk 0:01:19]} 27... Re8 {[%clk
0:01:18.3]} 28. Bg4 {[%clk 0:01:06.4]} 28... Ng7 {[%clk 0:01:17.5]} 29. Qf3
{[%clk 0:01:01.2]} 29... f5 {[%clk 0:01:16]} 30. Bh3 {[%clk 0:00:41.1]} 30...
Rd6 {[%clk 0:01:15.4]} 31. Qe3 {[%clk 0:00:35.7]} 31... Kd7 {[%clk 0:01:06.2]}
32. Qc5 {[%clk 0:00:34.9]} 32... Bc6 {[%clk 0:01:05.2]} 33. c4 {[%clk
0:00:28.6]} 33... d4 {[%clk 0:01:01]} 34. Qe5 {[%clk 0:00:25.8]} 34... Re7
{[%clk 0:01:01.2]} 35. Bc5 {[%clk 0:00:24.9]} 35... Ne8 {[%clk 0:00:58.8]} 36.
Bxf5 {[%clk 0:00:23.2]} 36... Kc7 {[%clk 0:00:54.5]} 37. Bxd6+ {[%clk
0:00:20.6]} 37... Nxd6 {[%clk 0:00:53]} 38. c5 {[%clk 0:00:21]} 38... Rd7 {[%clk
0:00:51.8]} 39. cxd6+ {[%clk 0:00:21.1]} 39... Rxd6 {[%clk 0:00:52]} 40. Bxe6
{[%clk 0:00:21.6]} 40... b6 {[%clk 0:00:52.2]} 41. Qg7+ {[%clk 0:00:21.4]} 41...
Bd7 {[%clk 0:00:51.1]} 42. Bxd7 {[%clk 0:00:20.6]} 42... Rxd7 {[%clk 0:00:50.1]}
43. Re7 {[%clk 0:00:20.3]} 1-0

[Event "*** Titled Tuesday Blitz"]
[Site "Chess.com"]
[Date "2020.04.28"]
[Round "6"]
[White "AsaHoffmann"]
[Black "troisi"]
[Result "0-1"]
[WhiteElo "2303"]
[BlackElo "2171"]
[TimeControl "180+1"]
[EndTime "11:06:30 PDT"]
[Termination "troisi won by resignation"]

1. d4 {[%clk 0:02:58.6]} 1... Nf6 {[%clk 0:02:59.5]} 2. Bg5 {[%clk 0:02:57.6]}
2... e6 {[%clk 0:02:55.7]} 3. Nd2 {[%clk 0:02:56.8]} 3... d5 {[%clk 0:02:55.5]}
4. e3 {[%clk 0:02:56.4]} 4... c5 {[%clk 0:02:55.1]} 5. c3 {[%clk 0:02:55.8]}
5... Nc6 {[%clk 0:02:55.2]} 6. f4 {[%clk 0:02:55.3]} 6... h6 {[%clk 0:02:54.1]}
7. Bh4 {[%clk 0:02:54.8]} 7... Be7 {[%clk 0:02:51.6]} 8. Ngf3 {[%clk 0:02:54.2]}
8... g5 {[%clk 0:02:50]} 9. fxg5 {[%clk 0:02:53.1]} 9... Ne4 {[%clk 0:02:50]}
10. Nxe4 {[%clk 0:02:49.2]} 10... dxe4 {[%clk 0:02:49.1]} 11. Nd2 {[%clk
0:02:48.4]} 11... hxg5 {[%clk 0:02:48.6]} 12. Bg3 {[%clk 0:02:46.6]} 12... f5
{[%clk 0:02:48.6]} 13. dxc5 {[%clk 0:02:42.4]} 13... Bxc5 {[%clk 0:02:44.2]} 14.
Nc4 {[%clk 0:02:41.5]} 14... Qd5 {[%clk 0:02:19.7]} 15. Qb3 {[%clk 0:02:17.6]}
15... e5 {[%clk 0:01:35.4]} 16. Rd1 {[%clk 0:02:03.4]} 16... Qe6 {[%clk
0:01:31]} 17. Nxe5 {[%clk 0:02:00.5]} 17... Qxb3 {[%clk 0:01:14.6]} 18. axb3
{[%clk 0:01:58.4]} 18... Bxe3 {[%clk 0:01:11.3]} 19. Bb5 {[%clk 0:01:55.8]}
19... f4 {[%clk 0:01:03.3]} 20. Bf2 {[%clk 0:01:42.5]} 20... Bxf2+ {[%clk
0:00:59]} 21. Kxf2 {[%clk 0:01:41.9]} 21... a6 {[%clk 0:00:45.1]} 22. Bxc6+
{[%clk 0:01:33.1]} 22... bxc6 {[%clk 0:00:44.3]} 23. Nxc6 {[%clk 0:01:32.7]}
23... Bg4 {[%clk 0:00:42.3]} 24. Rd5 {[%clk 0:01:29.2]} 24... e3+ {[%clk
0:00:40.6]} 25. Kg1 {[%clk 0:01:26.3]} 25... Rh5 {[%clk 0:00:29.6]} 26. h3
{[%clk 0:01:25.9]} 26... Be6 {[%clk 0:00:27.3]} 27. Re5 {[%clk 0:01:23]} 27...
Kf7 {[%clk 0:00:23.6]} 28. Nd4 {[%clk 0:01:22.3]} 28... Bd7 {[%clk 0:00:21.5]}
29. Kh2 {[%clk 0:01:21.7]} 29... Re8 {[%clk 0:00:20.8]} 30. Rxe8 {[%clk
0:01:18.7]} 30... Kxe8 {[%clk 0:00:21.7]} 31. Re1 {[%clk 0:01:16.8]} 31... g4
{[%clk 0:00:21]} 32. Kg1 {[%clk 0:01:11.1]} 32... gxh3 {[%clk 0:00:20.8]} 33.
gxh3 {[%clk 0:01:10.6]} 33... Rxh3 {[%clk 0:00:21.7]} 34. Kg2 {[%clk 0:01:09.1]}
34... Rg3+ {[%clk 0:00:21.3]} 35. Kf1 {[%clk 0:01:08.9]} 35... Bh3+ {[%clk
0:00:21]} 36. Ke2 {[%clk 0:01:08.1]} 36... Rg2+ {[%clk 0:00:20.3]} 37. Kd3
{[%clk 0:01:06.9]} 37... Rxb2 {[%clk 0:00:20.1]} 38. Ke4 {[%clk 0:01:03.2]}
38... Rf2 {[%clk 0:00:17.2]} 39. Nf3 {[%clk 0:00:55.3]} 39... Bg2 {[%clk
0:00:17.3]} 40. Kxf4 {[%clk 0:00:54.9]} 40... Rxf3+ {[%clk 0:00:17.7]} 41. Kg4
{[%clk 0:00:54.5]} 41... Kd7 {[%clk 0:00:18.2]} 42. Re2 {[%clk 0:00:53.8]} 42...
Bh1 {[%clk 0:00:17.7]} 43. Rh2 {[%clk 0:00:52.3]} 43... Rf1 {[%clk 0:00:17.2]}
44. Re2 {[%clk 0:00:51.7]} 44... Bf3+ {[%clk 0:00:17.1]} 45. Kg3 {[%clk
0:00:51]} 45... Bxe2 {[%clk 0:00:18]} 0-1